Cogmind - Beta 16.1 *** ADVENTURER MODE // 2026.02.13 @ 19:43:14 Player: il2076 Result: Destroyed by D-53 Grenadier with Mini Grenade Launcher Performance ------------- Evolutions (0) 0 Regions Visited (2) 400 Robots Destroyed (11) 55 Value Destroyed (238) 238 Prototype IDs (0) 0 Alien Tech Used (0) 0 Bonus (0) 0 TOTAL SCORE: 693 Bonus ------- None Cogmind --------- Core Integrity 0/250 Matter 285/300 Energy 100/100 System Corruption 0% Temperature Cool (0) Movement Core (100) Ox1 Location -10/Mines Parts ------- > --- POWER (1) -------- (None) > --- PROPULSION (2) --- (None) > --- UTILITY (2) ------ Scrap Suit > --- WEAPON (2) ------- (None) > --- INVENTORY (5) ---- Light Ion Engine Large Storage Unit Peak State ------------ > --- POWER ------------ Light Ion Engine > --- PROPULSION ------- (None) > --- UTILITY ---------- Scrap Suit > --- WEAPON ----------- (None) > --- INVENTORY -------- Light Ion Engine Large Storage Unit [Rating: 9] Favorites ----------- Power Ion Engine Engine Ion Engine Propulsion Aluminum Leg Leg Aluminum Leg Utility Large Storage Unit Device Terrain Scanner Storage Large Storage Unit Weapon Medium Laser Energy Gun Medium Laser Build | -11 -10 -10 ------- Run | Yrd Mat Min Slots Evolved . | . . . Power . | . . . Propulsion . | . . . Utility . | . . . Weapon . | . . . Parts Attached 10 | 7 1 2 Power 2 | 2 . . Engine 2 | 2 . . Core . | . . . Reactor . | . . . Propulsion 2 | 2 . . Treads . | . . . Leg 2 | 2 . . Wheel . | . . . Hover . | . . . Flight . | . . . Utility 4 | 1 1 2 Device 2 | . . 2 Storage 2 | 1 1 . Processor . | . . . Hackware . | . . . Protection . | . . . Artifact . | . . . Weapon 2 | 2 . . Energy Gun 2 | 2 . . Energy Cannon . | . . . Ballistic Gun . | . . . Ballistic Cannon . | . . . Launcher . | . . . Special Weapon . | . . . Impact Weapon . | . . . Slashing Weapon . | . . . Piercing Weapon . | . . . Special Melee Weapon . | . . . Unidentified Prototypes . | . . . Parts Lost 7 | . . 7 Power 2 | . . 2 Propulsion 2 | . . 2 Utility 1 | . . 1 Weapon 2 | . . 2 Highest Loss Streak 6 | . . 6 To Critical Strikes . | . . . Average Backups 1 | . 1 2 Power 1 | . 1 1 Propulsion . | . . . Utility . | . . . Weapon . | . . . Tool/Special . | . . . Unused Backups 1 | . . 1 Power 1 | . . 1 Propulsion . | . . . Utility . | . . . Weapon . | . . . Tool/Special . | . . . Average Slot Usage (%) 84 | . 85 84 Engine 14 | . 14 14 Leg 27 | . 28 27 Storage 13 | . 14 13 Energy Gun 27 | . 28 26 Peak Build Rating 9 | 6 7 9 Average Rating 6 | 5 6 6 On Entrance 4 | . 6 6 Avg Prop Armor Cover (%) 9 | . . 9 Naked Turns . | . . . Heaviest Build 30 | 14 29 30 Greatest Support 20 | 20 20 20 Greatest Overweight (x) 3 | 3 1 2 Average Overweight (x) . | . . 1 Largest Inventory Capacity 15 | 8 15 15 Average Capacity 12 | 7 12 14 Most Carried 4 | 1 1 4 Average Carried 1 | . 1 3 Final Capacity 15 | 8 15 5 Final Carried 2 | 1 1 2 Scrap Suit Usage (%) 1 | . . 2 Class Distribution -------------------- 100% | Mutant Dominant Class ---------------- Mutant | -10/Materials Mutant | -10/Mines Resources | -11 -10 -10 ----------- Run | Yrd Mat Min Matter Collected 290 | 229 51 10 Remotely . | . . . Salvage Created 300 | . 140 160 Parts 11 | . 5 6 Haulers Intercepted . | . . . Recyclers Shooed . | . . . Parts Field Recycled . | . . . Retrieved Matter . | . . . Parts Self-Destructed . | . . . Prevented . | . . . Parts Restored . | . . . Kills | -11 -10 -10 ------- Run | Yrd Mat Min Combat Hostiles Destroyed 12 | . 5 7 Guns 12 | . 5 7 Classes Destroyed 4 | . 3 1 Watcher 1 | . 1 . Swarmer 6 | . 3 3 Grunt 4 | . 2 2 Assembled 2 | . . 2 Best Kill Streak 5 | . 3 5 Combat Bots Only 5 | . 3 5 Max Kills in Single Turn 2 | . 2 1 Gunslinging 1 | . 1 . Exploded . | . . . Melee . | . . . Uniques/NPCs Destroyed . | . . . Combat | -11 -10 -10 -------- Run | Yrd Mat Min Hostile Shots Fired 56 | . 12 44 Missed 11 | . 3 8 Hits 45 | . 9 36 Melee 4 | . . 4 Projectile 41 | . 9 32 AOE 15 | . . 15 Part Disruptions 1 | . . 1 Damage Taken 779 | . 83 696 Core 251 | . 22 229 Absorbed by Shields . | . . . Ignored by Resistances 224 | . 27 197 Core Remaining (%) 100 | 100 . . Volleys Fired 31 | . 12 19 Largest 2 | . 2 2 Hottest 100 | . 100 100 Shots Fired 57 | . 24 33 Gun 57 | . 24 33 Cannon . | . . . Launcher . | . . . Special . | . . . Kinetic . | . . . Thermal 57 | . 24 33 Explosive . | . . . Electromagnetic . | . . . Robot Hit Streak 10 | . 10 8 Robot Miss Streak 2 | . 1 2 Penetration Max . | . . . Secondary Targets 1 | . 1 . Max Gunslinging Chain 1 | . 1 . Shots Hit Robots 43 | . 19 24 Core Hits 23 | . 9 14 Critical Kills . | . . . Critical Parts Destroyed . | . . . Critical Strikes 5 | . 3 2 Burn 5 | . 3 2 Melee Attacks . | . . . Impact . | . . . Slashing . | . . . Piercing . | . . . Sneak Attacks . | . . . Combat Hostiles . | . . . Follow-up Attacks . | . . . Damage Inflicted 540 | . 238 302 Guns 540 | . 238 302 Cannons . | . . . Explosions . | . . . Melee . | . . . Ramming . | . . . Kinetic . | . . . Thermal 540 | . 238 302 Explosive . | . . . Electromagnetic . | . . . Impact . | . . . Slashing . | . . . Piercing . | . . . Highest Corruption . | . . . Average Corruption . | . . . Corruption Purged . | . . . Corruption Blocked . | . . . Overload Shots . | . . . Overflow Damage . | . . . Projectiles . | . . . Explosions . | . . . Melee . | . . . Knockbacks . | . . . Impact . | . . . Kinetic . | . . . Secondary . | . . . Self-Inflicted Damage . | . . . Shots . | . . . Rammed . | . . . Targets Rammed . | . . . Kicked . | . . . Crushed . | . . . Highest Temperature 296 | . 288 296 Average Temperature 90 | . 92 88 Received Heat Transfer 233 | . 54 179 Effects 1 | . 1 . Energy Bleed 1 | . 1 . Siege Activations . | . . . Martial Activations . | . . . Shielding Activations . | . . . Robots Disrupted . | . . . Combat Hostiles . | . . . Robots Corrupted . | . . . Combat Hostiles . | . . . Parts Fried . | . . . Impact Corruptions . | . . . Robots Melted . | . . . Combat Hostiles . | . . . Parts Melted 10 | . 5 5 Heat Transferred 1961 | . 925 1036 Parts Sabotaged . | . . . Parts Stolen . | . . . Parts Stripped . | . . . Power Chain Reactions . | . . . Alert | -11 -10 -10 ------- Run | Yrd Mat Min Maximum Alert Level . | . . . Low Security (%) 100 | 100 100 100 Level 1 . | . . . Level 2 . | . . . Level 3 . | . . . Level 4 . | . . . Level 5 . | . . . High Security . | . . . Max Security . | . . . Peak Influence 79 | . 70 79 Initial 9 | . . 9 Average 16 | . 14 25 Influence Increases 247 | . 127 120 Destroy 0b10 Robot/C 200 | . 100 100 Destroy 0b10 Robot/NC 5 | . 5 . Destroy Leader 42 | . 22 20 Influence Decreases 247 | . 97 150 Entered New Map 21 | . . 21 Time Decay 197 | . 97 100 Lost Part 29 | . . 29 Squads Dispatched . | . . . Investigation . | . . . Extermination . | . . . Reinforcement . | . . . Assault . | . . . Garrison . | . . . Intercept . | . . . Searches Triggered . | . . . Construction Impeded . | . . . Haulers Reinforced . | . . . Active Scanning Responses . | . . . Cargo Convoy Interrupts . | . . . Stealth | -11 -10 -10 --------- Run | Yrd Mat Min Distress Signals . | . . . Communications Jammed . | . . . Distress Signals . | . . . Times Spotted 22 | . 8 14 Peak Tracking Total 7 | . 3 7 Tactical Retreats . | . . . Traps | -11 -10 -10 ------- Run | Yrd Mat Min Traps Triggered . | . . . Indirectly . | . . . Trap Hack Attempts . | . . . Triggered . | . . . Disarmed . | . . . Reprogrammed . | . . . Reused . | . . . Traps Extracted . | . . . Installed . | . . . Triggered . | . . . Machines | -11 -10 -10 ---------- Run | Yrd Mat Min Machines Disabled . | . . . Max in Single Turn . | . . . Machines Repaired . | . . . Machines Dismantled . | . . . Machines Sabotaged . | . . . Overloaded Fab Kills . | . . . Hacking | -11 -10 -10 --------- Run | Yrd Mat Min Machines Accessed 2 | . 2 . Terminals 2 | . 2 . Fabricators . | . . . Repair Stations . | . . . Recycling Units . | . . . Scanalyzers . | . . . Garrison Access . | . . . Total Hacks 3 | . 3 . Successful 3 | . 3 . Failed . | . . . Catastrophic . | . . . Database Lockouts . | . . . Manual . | . . . Terminals 3 | . 3 . Fabricators . | . . . Repair Stations . | . . . Recycling Units . | . . . Scanalyzers . | . . . Garrison Access . | . . . Terminal Hacks 3 | . 3 . Record 1 | . 1 . Alert Level 2 | . 2 . Fabricator Hacks . | . . . Repair Station Hacks . | . . . Recycling Unit Hacks . | . . . Scanalyzer . | . . . Garrison Access Hacks . | . . . Unauthorized Hacks . | . . . Terminals . | . . . Fabricators . | . . . Repair Stations . | . . . Recycling Units . | . . . Scanalyzers . | . . . Garrison Access . | . . . Data Cores Recovered . | . . . Used . | . . . Hacking Detections 1 | . 1 . Full Trace Events . | . . . Feedback Events . | . . . Feedback Blocked . | . . . Robot Schematics Acquired . | . . . Robots Built . | . . . Authchips . | . . . Time . | . . . Total Robot Build Rating . | . . . Part Schematics Acquired . | . . . Parts Built . | . . . Authchips . | . . . Time . | . . . Total Part Build Rating . | . . . Part Studies Acquired . | . . . Parts Repaired . | . . . Time . | . . . Parts Recycled . | . . . Recycled Matter . | . . . Retrieved Matter . | . . . Retrieved Components . | . . . Parts Scanalyzed . | . . . Part Schematics Acquired . | . . . Parts Damaged . | . . . Bothacking | -11 -10 -10 ------------ Run | Yrd Mat Min Used RIF Installer . | . . . Robots Hacked . | . . . Non-combat . | . . . Combat . | . . . Robot Hacks Applied . | . . . Relay Couplers Released . | . . . Fabnet Peak Effective % . | . . . Robots Rewired . | . . . Allies Hacked . | . . . Hacks Repelled . | . . . Allies | -11 -10 -10 -------- Run | Yrd Mat Min Total Allies . | . . . Largest Group . | . . . Highest-Rated Group . | . . . Highest-Rated Ally . | . . . Total Orders . | . . . Ally Attacks . | . . . Total Damage . | . . . Kills . | . . . Allies Corrupted . | . . . Allies Melted . | . . . Intel | -11 -10 -10 ------- Run | Yrd Mat Min Active Infowar (turns) 38 | . . 38 Terrain 38 | . . 38 Robot Analysis Total . | . . . Derelict Logs Recovered 1 | . . 1 Drone Launches . | . . . Drone Recoveries . | . . . Exploration | -11 -10 -10 ------------- Run | Yrd Mat Min Turns Passed 884 | 109 440 335 Spaces Moved 445 | 79 248 118 Core 20 | 16 . 4 Treads . | . . . Legs 425 | 63 248 114 Wheels . | . . . Hover . | . . . Flight . | . . . Fastest Speed 50 | 50 120 150 Average Speed 169 | 125 160 218 Slowest Speed 260 | 200 190 260 Overloaded Moves . | . . . Propulsion Burnouts . | . . . Robots Hopped . | . . . Potential Cave-ins . | . . . Cave-ins Triggered . | . . . Exploration Rate (%) 22 | 4 38 26 Regions Visited 2 Branch Regions 1 Pre-discovered Areas . | . . . Known Exits Taken . | . . . Unknown Exits Taken 2 | 1 1 . Scrap Searched 2 | . . 2 Spaces Dug . | . . . Terrain Destroyed . | . . . Melee . | . . . Projectile . | . . . AOE . | . . . Terrain Rammed . | . . . Walls Destroyed . | . . . Machines Disabled . | . . . Actions | -11 -10 -10 --------- Run | Yrd Mat Min Total 513 | 86 265 162 Wait 23 | . 4 19 Move 443 | 78 247 118 Hop . | . . . Pick Up 2 | . . 2 Fast Attach 9 | 7 1 1 Attach 2 | . . 2 Detach 2 | 1 . 1 Swap . | . . . Drop 1 | . 1 . Fire 31 | . 12 19 Melee . | . . . Ram . | . . . Kick . | . . . Crush . | . . . Escape Stasis . | . . . Rewire . | . . . Trap . | . . . Miscellaneous . | . . . Route ------- -11/Scrapyard -10/Materials -10/Mines (discovered 1 exit: [*Mat]) History --------- Turn | Location | Event 27 | -11/Scrapyard | Discovered new exit (range 15) 110 | -11/Scrapyard | Entered Materials 304 | -10/Materials | Build established: Mutant 383 | -10/Materials | Discovered new exit (range 16) 550 | -10/Materials | Entered Mines 591 | -10/Mines | Discovered new exit (range 8) 633 | -10/Mines | Found a Scrap Suit stashed away for nefarious purposes 636 | -10/Mines | Found Scrap Suit 674 | -10/Mines | Assembled infested the area 757 | -10/Mines | Learned 2 Materials zone layouts 877 | -10/Mines | Core integrity fell below 50% 880 | -10/Mines | Core integrity fell below 20% 885 | -10/Mines | Destroyed by D-53 Grenadier with Mini Grenade Launcher Last Messages --------------- 00832_ Aluminum Leg melted. 00832_ G-34 Mercenary destroyed. 00834_ U-05 Engineer lays Concrete. 00843_ R-06 Scavenger collects Sml. Laser. 00850_ U-05 Engineer builds a Wall. 00854_ U-05 Engineer lays Concrete. 00856_ U-05 Engineer builds a Wall. 00863_ Med. Laser destroyed. 00863_ R-06 Scavenger destroyed. 00867_ The unstable cave ceiling collapses. 00872_ Aluminum Leg destroyed. 00873_ Ion Engine destroyed. 00874_ The unstable cave ceiling collapses. 00874_ Aluminum Leg destroyed. 00876_ Med. Laser destroyed. 00879_ U-05 Engineer builds a Wall. 00881_ The unstable cave ceiling collapses. 00883_ U-05 Engineer builds a Wall. 00885_ The unstable cave ceiling collapses. 00885_ Lgt. Ion Engine destroyed. Map ----- +----------------------------------------------------+ | | | | | | | | | | | ??????????????????????????????????#???#???#??????? | | ?????????????????????????????????## ## #?????????? | | ?????????????????????????????##### # #????????? | | ????????????????????????????# # #???????? | | ???????????????????????????? ## #???????? | | ???????????????????????????? ???????? | | ???????????????????????????? ???????? | | ???????????????????????????? # # ##??????? | | ???????????????????????????? # % ##?????? | | ???????????????????????????## ## #?## %% ####### | | ??????????????????????##### # ## #?# % | | ?????????????????????## # # ??# ######## | | ????????????????###### #u ##???## #?????#? | | ???????????????## # %##????# #??????? | | ???????????##### # # ####### ##??????? | | ?????????? d r ## ##???????? | | ?????????? d ###?# ## ########## | | ?????????????## # ##???# ## # | | ??????????????#####?# #????# ## #? """ | | ????????????????????## ##????# ## # """ | | ?????????????????????## @ #????# ##!#! """ | | ????????????????????# ###????# !%! < | | ????????????????????## ######## #### | | ?????????????????????# % #???## ###### | | ?????????????????????# r #######??????#????? | | ?????????????????????# #?????????????????? | | ?????????????????????# ####?????????????????? | | ?????????????????????## ##????????????????????? | | ??????????????????????## ##?????????????????????? | | ???????????????????????# #???????????????????????? | | ???????????????????????# ????????????????????????? | | ???????????????????????# ????????????????????????? | | ???????????????????????# ????????????????????????? | | ???????????????????????# ????????????????????????? | | ???????????????????????# ????????????????????????? | | ???????????????????????# ????????????????????????? | | ?????????????????????????????????????????????????? | | ?????????????????????????????????????????????????? | | ?????????????????????????????????????????????????? | | ?????????????????????????????????????????????????? | | ?????????????????????????????????????????????????? | | ?????????????????????????????????????????????????? | | ?????????????????????????????????????????????????? | | ?????????????????????????????????????????????????? | | ?????????????????????????????????????????????????? | +----------------------------------------------------+ Best States ------------- Heat Dissipation 25 Energy Generation 10 Energy Capacity 250 Matter Stores 300 Matter Capacity 300 Sight Range 16 Terrain Scan Range 14 Terrain Scan Density 10 Resistance: KI 20 Resistance: TH 20 Resistance: EX 20 Resistance: EM 20 Resistance: I 20 Resistance: S 20 Resistance: P 20 Evasion (%) 55 Offensive Hacking 10 Item Schematics ----------------- None Robot Schematics ------------------ None Fabricated ------------ Nothing Repaired ---------- Nothing Studied --------- None Alien Tech Used ----------------- None Achievements -------------- None Challenges ------------ None Game ------ Seed DeliveryBlinkGravjet Manual? 0 Play Time 00:15:29 Cumulative 9.2 hours Start 2026.02.13 @ 16:55:07 End 2026.02.13 @ 19:43:14 Sessions 4 Manual Loads 0 Difficulty Adventurer Special Mode None Game No. 4 Rogue 0 Adventurer 4 Explorer 0 Win Type - Total 0 Types 0/0/0/0/0/0/0/0/0/0 Lore% 6 Gallery% 10 Achievement% 10 Wizard Run 0 Options --------- Layout 0 ASCII 1 Keyboard 1 Movement Arrows Keybinds 0 Fullscreen 1 Font 24/Swanston Map View 113x50 Zoom Use 0% Tactical HUD 1 Map Filters NONE Filters NONE Steam 1 RUN: eb295eba-1837-4d8d-8f96-a87c935683c7